fUST/lending_fUST_20250503
["ID","MTS","AMOUNT","RATE_DAILY","PERIOD"]
[359690960,1746256049917,-2813.90599249,0.00021,2]
[359690961,1746256053096,-400.0,0.00019178,2]
[359690962,1746256053117,-400.0,0.00019178,2]
[359690963,1746256053138,-12601.56422439,0.00019373,3]
[359690964,1746256053159,-400.0,0.00019452,2]
[359690965,1746256053183,-400.0,0.00019452,2]
[359690966,1746256053204,-400.0,0.00019726,2]
[359690967,1746256053226,-400.0,0.00019726,2]
[359690968,1746256053246,-500.0,0.00019973,2]
[359690969,1746256053266,-151.4697106,0.0002,2]
[359690970,1746256053287,-400.0,0.0002,2]
[359690971,1746256053308,-400.0,0.00020273,2]
[359690972,1746256053330,-75574.43656501,0.00020547,2]
[359691041,1746256232183,-393.82849654,0.000189,2]
[359691042,1746256232195,-500.0,0.000189,2]
[359691043,1746256232205,-300.0,0.00019177,2]
[359691044,1746256232216,-180.0,0.00019177,2]
[359691045,1746256232228,-160.0,0.00019178,2]
[359691046,1746256232240,-160.0,0.00019178,2]
[359691047,1746256232251,-841.47485993,0.00019178,2]
[359691048,1746256232263,-421.66712248,0.00019178,2]
[359691049,1746256232275,-160.0,0.00019178,2]
[359691050,1746256232287,-182.16284668,0.00019178,2]
[359691051,1746256232300,-6600.46624245,0.00019178,2]
[359691052,1746256232433,-6001.09798194,0.00019178,2]
[359691053,1746256232445,-400.0,0.00019178,2]
[359691054,1746256232457,-400.0,0.00019178,2]
[359691055,1746256232471,-400.0,0.00019178,2]
[359691056,1746256232483,-481.92,0.00019178,2]
[359691057,1746256232495,-400.0,0.00019178,2]
[359691058,1746256232505,-400.0,0.00019178,2]
[359691059,1746256232516,-661.47,0.00019178,2]
[359691060,1746256232527,-596.74,0.00019178,2]
[359691061,1746256232539,-400.0,0.00019178,2]
[359691062,1746256232551,-84.04651806,0.00019178,2]
[359691714,1746256247713,-160.0,0.00019178,2]
[359691715,1746256247724,-315.95348194,0.00019178,2]
[359691716,1746256247733,-510.4,0.00019178,2]
[359691717,1746256247743,-400.0,0.00019178,2]
[359691718,1746256247753,-632.62,0.00019178,2]
[359691719,1746256247762,-526.36,0.00019178,2]
[359691720,1746256247772,-400.0,0.00019178,2]
[359691721,1746256247781,-552.91,0.00019178,2]
[359691722,1746256247790,-775.17,0.00019178,2]
[359691723,1746256247800,-400.0,0.00019178,2]
[359691724,1746256247810,-400.0,0.00019178,2]
[359691725,1746256247819,-400.0,0.00019178,2]
[359691726,1746256247829,-794.64,0.00019178,2]
[359691727,1746256247838,-400.0,0.00019178,2]
[359691728,1746256247848,-802.78,0.00019178,2]
[359691729,1746256247858,-400.0,0.00019178,2]
[359691730,1746256247867,-400.0,0.00019178,2]
[359691731,1746256247877,-400.0,0.00019178,2]
[359691732,1746256247887,-400.0,0.00019178,2]
[359691733,1746256247897,-400.0,0.00019178,2]
[359691734,1746256247906,-588.46,0.00019178,2]
[359691735,1746256247916,-2003.18,0.00019178,2]
[359691736,1746256247927,-438.16,0.00019178,2]
[359691737,1746256247936,-400.0,0.00019178,2]
[359691738,1746256247946,-928.7,0.00019178,2]
[359691739,1746256247956,-400.0,0.00019178,2]
[359691740,1746256247965,-1467.12,0.00019178,2]
[359691741,1746256247975,-1841.02,0.00019178,2]
[359691742,1746256247985,-520.64,0.00019178,2]
[359691743,1746256247994,-571.38,0.00019178,2]
[359691744,1746256248004,-683.98,0.00019178,2]
[359691745,1746256248013,-400.0,0.00019178,2]
[359691746,1746256248023,-580.79,0.00019178,2]
[359691747,1746256248032,-400.0,0.00019178,2]
[359691748,1746256248042,-551.5,0.00019178,2]
[359691749,1746256248052,-400.0,0.00019178,2]
[359691750,1746256248061,-400.0,0.00019178,2]
[359691751,1746256248070,-400.0,0.00019178,2]
[359691752,1746256248080,-1435.21,0.00019178,2]
[359691753,1746256248090,-193.517092,0.00019178,2]
[359691754,1746256248100,-400.0,0.00019452,2]
[359691755,1746256248109,-400.0,0.00019452,2]
[359691756,1746256248120,-400.0,0.00019452,2]
[359691757,1746256248129,-481.92,0.00019452,2]
[359691758,1746256248139,-400.0,0.00019452,2]
[359691759,1746256248148,-400.0,0.00019452,2]
[359691760,1746256248158,-661.47,0.00019452,2]
[359691761,1746256248168,-596.74,0.00019452,2]
[359691762,1746256248178,-400.0,0.00019452,2]
[359691763,1746256248187,-400.0,0.00019452,2]
[359691764,1746256248198,-510.4,0.00019452,2]
[359691765,1746256248209,-400.0,0.00019452,2]
[359691766,1746256248218,-632.62,0.00019452,2]
[359691767,1746256248228,-526.36,0.00019452,2]
[359691768,1746256248238,-400.0,0.00019452,2]
[359691769,1746256248247,-552.91,0.00019452,2]
[359691770,1746256248257,-775.17,0.00019452,2]
[359691771,1746256248267,-400.0,0.00019452,2]
[359691772,1746256248276,-400.0,0.00019452,2]
[359691773,1746256248286,-400.0,0.00019452,2]
[359691774,1746256248295,-794.64,0.00019452,2]
[359691775,1746256248304,-302.47649964,0.00019452,2]
[359691776,1746256248314,-802.78,0.00019452,2]
[359691777,1746256248324,-400.0,0.00019452,2]
[359691778,1746256248333,-400.0,0.00019452,2]
[359691779,1746256248342,-400.0,0.00019452,2]
[359691780,1746256248352,-400.0,0.00019452,2]
[359691781,1746256248362,-400.0,0.00019452,2]
[359691782,1746256248371,-588.46,0.00019452,2]
[359691783,1746256248381,-2003.18,0.00019452,2]
[359691784,1746256248390,-438.16,0.00019452,2]
[359691785,1746256248400,-400.0,0.00019452,2]
[359691786,1746256248409,-928.7,0.00019452,2]
[359691787,1746256248419,-400.0,0.00019452,2]
[359691788,1746256248429,-1467.12,0.00019452,2]
[359691789,1746256248439,-1841.02,0.00019452,2]
[359691790,1746256248449,-520.64,0.00019452,2]
[359691791,1746256248458,-571.38,0.00019452,2]
[359691792,1746256248467,-683.98,0.00019452,2]
[359691793,1746256248477,-400.0,0.00019452,2]
[359691794,1746256248486,-580.79,0.00019452,2]
[359691795,1746256248496,-400.0,0.00019452,2]
[359691796,1746256248505,-551.5,0.00019452,2]
[359691797,1746256248515,-400.0,0.00019452,2]
[359691798,1746256248525,-400.0,0.00019452,2]
[359691799,1746256248534,-400.0,0.00019452,2]
[359691800,1746256248544,-1435.21,0.00019452,2]
[359691801,1746256248554,-1000.0,0.00019722,2]
[359691802,1746256248564,-400.0,0.00019726,2]
[359691803,1746256248573,-400.0,0.00019726,2]
[359691804,1746256248583,-400.0,0.00019726,2]
[359691805,1746256248593,-481.92,0.00019726,2]
[359691806,1746256248603,-400.0,0.00019726,2]
[359691807,1746256248613,-400.0,0.00019726,2]
[359691808,1746256248623,-661.47,0.00019726,2]
[359691809,1746256248633,-596.74,0.00019726,2]
[359691810,1746256248643,-400.0,0.00019726,2]
[359691811,1746256248652,-400.0,0.00019726,2]
[359691812,1746256248662,-510.4,0.00019726,2]
[359691813,1746256248671,-400.0,0.00019726,2]
[359691814,1746256248681,-632.62,0.00019726,2]
[359691815,1746256248690,-526.36,0.00019726,2]
[359691816,1746256248700,-400.0,0.00019726,2]
[359691817,1746256248710,-552.91,0.00019726,2]
[359691818,1746256248720,-775.17,0.00019726,2]
[359691819,1746256248730,-196.24825089,0.00019726,2]
[359691820,1746256248739,-400.0,0.00019726,2]
[359691821,1746256248749,-400.0,0.00019726,2]
[359691822,1746256248758,-794.64,0.00019726,2]
[359691823,1746256248768,-802.78,0.00019726,2]
[359691824,1746256248778,-400.0,0.00019726,2]
[359691825,1746256248787,-400.0,0.00019726,2]
[359691826,1746256248797,-400.0,0.00019726,2]
[359691827,1746256248807,-400.0,0.00019726,2]
[359691828,1746256248817,-400.0,0.00019726,2]
[359691829,1746256248826,-588.46,0.00019726,2]
[359691830,1746256248835,-2003.18,0.00019726,2]
[359691831,1746256248845,-438.16,0.00019726,2]
[359691832,1746256248855,-400.0,0.00019726,2]
[359691833,1746256248865,-928.7,0.00019726,2]
[359691834,1746256248874,-400.0,0.00019726,2]
[359691835,1746256248884,-1467.12,0.00019726,2]
[359691836,1746256248893,-1841.02,0.00019726,2]
[359691837,1746256248903,-520.64,0.00019726,2]
[359691838,1746256248912,-571.38,0.00019726,2]
[359691839,1746256248922,-683.98,0.00019726,2]
[359691840,1746256248931,-400.0,0.00019726,2]
[359691841,1746256248940,-580.79,0.00019726,2]
[359691842,1746256248950,-305.86442307,0.00019726,2]
[359691843,1746256248959,-551.5,0.00019726,2]
[359691844,1746256248969,-400.0,0.00019726,2]
[359691845,1746256248978,-400.0,0.00019726,2]
[359691846,1746256248988,-400.0,0.00019726,2]
[359691847,1746256248997,-1435.21,0.00019726,2]
[359691848,1746256249007,-500.0,0.00019973,2]
[359691849,1746256249017,-400.0,0.0002,2]
[359691850,1746256249026,-400.0,0.0002,2]
[359691851,1746256249036,-400.0,0.0002,2]
[359691852,1746256249047,-400.0,0.0002,2]
[359691853,1746256249056,-481.92,0.0002,2]
[359691854,1746256249066,-400.0,0.0002,2]
[359691855,1746256249075,-400.0,0.0002,2]
[359691856,1746256249085,-661.47,0.0002,2]
[359691857,1746256249094,-596.74,0.0002,2]
[359691858,1746256249104,-400.0,0.0002,2]
[359691859,1746256249113,-400.0,0.0002,2]
[359691860,1746256249122,-510.4,0.0002,2]
[359691861,1746256249131,-400.0,0.0002,2]
[359691862,1746256249141,-632.62,0.0002,2]
[359691863,1746256249151,-526.36,0.0002,2]
[359691864,1746256249161,-40000.0,0.0002,2]
[359691865,1746256249171,-400.0,0.0002,2]
[359691866,1746256249181,-552.91,0.0002,2]
[359691867,1746256249190,-775.17,0.0002,2]
[359691868,1746256249200,-380.70212146,0.0002,2]
[359691869,1746256249331,-19.29787854,0.0002,2]
[359691870,1746256249342,-400.0,0.0002,2]
[359691871,1746256249352,-794.64,0.0002,2]
[359691872,1746256249362,-802.78,0.0002,2]
[359691873,1746256249372,-400.0,0.0002,2]
[359691874,1746256249382,-400.0,0.0002,2]
[359691875,1746256249392,-400.0,0.0002,2]
[359691876,1746256249402,-400.0,0.0002,2]
[359691877,1746256249412,-400.0,0.0002,2]
[359691878,1746256249422,-588.46,0.0002,2]
[359691879,1746256249433,-2003.18,0.0002,2]
[359691880,1746256249443,-438.16,0.0002,2]
[359691881,1746256249452,-400.0,0.0002,2]
[359691882,1746256249462,-928.7,0.0002,2]
[359691883,1746256249472,-400.0,0.0002,2]
[359691884,1746256249481,-1467.12,0.0002,2]
[359691885,1746256249491,-1841.02,0.0002,2]
[359691886,1746256249500,-520.64,0.0002,2]
[359691887,1746256249510,-571.38,0.0002,2]
[359691888,1746256249520,-683.98,0.0002,2]
[359691889,1746256249530,-400.0,0.0002,2]
[359691890,1746256249540,-580.79,0.0002,2]
[359691891,1746256249550,-551.5,0.0002,2]
[359691892,1746256249560,-400.0,0.0002,2]
[359691893,1746256249570,-400.0,0.0002,2]
[359691894,1746256249580,-400.0,0.0002,2]
[359691895,1746256249590,-1435.21,0.0002,2]
[359691896,1746256249599,-1500.0,0.00020068,2]
[359691897,1746256249610,-716.56795111,0.0002016,2]
[359691898,1746256249620,-656.53437605,0.00020173,2]
[359691899,1746256249630,-400.0,0.00020273,2]
[359691900,1746256249640,-400.0,0.00020273,2]
[359691901,1746256249651,-400.0,0.00020273,2]
[359691902,1746256249661,-400.0,0.00020273,2]
[359691903,1746256249843,-481.92,0.00020273,2]
[359691904,1746256249853,-400.0,0.00020273,2]
[359691905,1746256249863,-400.0,0.00020273,2]
[359691906,1746256249873,-661.47,0.00020273,2]
[359691907,1746256249883,-596.74,0.00020273,2]
[359691908,1746256249892,-400.0,0.00020273,2]
[359691909,1746256249902,-322.22769052,0.00020273,2]
[359691910,1746256249911,-510.4,0.00020273,2]
[359691911,1746256249921,-400.0,0.00020273,2]
[359691912,1746256249931,-632.62,0.00020273,2]
[359691913,1746256249940,-526.36,0.00020273,2]
[359691914,1746256249950,-400.0,0.00020273,2]
[359691915,1746256249960,-552.91,0.00020273,2]
[359691916,1746256249969,-775.17,0.00020273,2]
[359691917,1746256249979,-400.0,0.00020273,2]
[359691918,1746256249988,-400.0,0.00020273,2]
[359691919,1746256249998,-794.64,0.00020273,2]
[359691920,1746256250007,-400.0,0.00020273,2]
[359691921,1746256250017,-802.78,0.00020273,2]
[359691922,1746256250026,-400.0,0.00020273,2]
[359691923,1746256250036,-400.0,0.00020273,2]
[359691924,1746256250046,-400.0,0.00020273,2]
[359691925,1746256250056,-400.0,0.00020273,2]
[359691926,1746256250065,-588.46,0.00020273,2]
[359691927,1746256250075,-2003.18,0.00020273,2]
[359691928,1746256250085,-438.16,0.00020273,2]
[359691929,1746256250095,-400.0,0.00020273,2]
[359691930,1746256250104,-928.7,0.00020273,2]
[359691931,1746256250114,-400.0,0.00020273,2]
[359691932,1746256250129,-1467.12,0.00020273,2]
[359691933,1746256250138,-1841.02,0.00020273,2]
[359691934,1746256250148,-520.64,0.00020273,2]
[359691935,1746256250158,-571.38,0.00020273,2]
[359691936,1746256250167,-683.98,0.00020273,2]
[359691937,1746256250177,-400.0,0.00020273,2]
[359691938,1746256250186,-580.79,0.00020273,2]
[359691939,1746256250196,-551.5,0.00020273,2]
[359691940,1746256250206,-400.0,0.00020273,2]
[359691941,1746256250215,-400.0,0.00020273,2]
[359691942,1746256250225,-400.0,0.00020273,2]
[359691943,1746256250236,-1435.21,0.00020273,2]
[359691944,1746256250247,-500.0,0.0002035,2]
[359691945,1746256250257,-500.0,0.0002035,2]
[359691946,1746256250268,-500.0,0.0002035,2]
[359691947,1746256250278,-500.0,0.0002035,2]
[359691948,1746256250288,-500.0,0.0002035,2]
[359691949,1746256250297,-300.0,0.0002035,2]
[359691950,1746256250307,-1500.0,0.00020544,2]
[359691951,1746256250316,-1774.08,0.00020547,2]
[359691952,1746256250326,-400.0,0.00020547,2]
[359691953,1746256250336,-400.0,0.00020547,2]
[359691954,1746256250346,-400.0,0.00020547,2]
[359691955,1746256250356,-400.0,0.00020547,2]
[359691956,1746256250365,-481.92,0.00020547,2]
[359691957,1746256250374,-400.0,0.00020547,2]
[359691958,1746256250383,-400.0,0.00020547,2]
[359691959,1746256250393,-661.47,0.00020547,2]
[359691960,1746256250402,-596.74,0.00020547,2]
[359691961,1746256250411,-400.0,0.00020547,2]
[359691962,1746256250421,-510.4,0.00020547,2]
[359691963,1746256250431,-400.0,0.00020547,2]
[359691964,1746256250441,-632.62,0.00020547,2]
[359691965,1746256250450,-526.36,0.00020547,2]
[359691966,1746256250460,-400.0,0.00020547,2]
[359691967,1746256250469,-552.91,0.00020547,2]
[359691968,1746256250478,-775.17,0.00020547,2]
[359691969,1746256250488,-400.0,0.00020547,2]
[359691970,1746256250497,-400.0,0.00020547,2]
[359691971,1746256250507,-794.64,0.00020547,2]
[359691972,1746256250516,-400.0,0.00020547,2]
[359691973,1746256250526,-802.78,0.00020547,2]
[359691974,1746256250536,-400.0,0.00020547,2]
[359691975,1746256250545,-400.0,0.00020547,2]
[359691976,1746256250555,-400.0,0.00020547,2]
[359691977,1746256250565,-400.0,0.00020547,2]
[359691978,1746256250576,-588.46,0.00020547,2]
[359691979,1746256250586,-2003.18,0.00020547,2]
[359691980,1746256250596,-438.16,0.00020547,2]
[359691981,1746256250606,-400.0,0.00020547,2]
[359691982,1746256250615,-928.7,0.00020547,2]
[359691983,1746256250625,-400.0,0.00020547,2]
[359691984,1746256250635,-1467.12,0.00020547,2]
[359691985,1746256250645,-1841.02,0.00020547,2]
[359691986,1746256250655,-520.64,0.00020547,2]
[359691987,1746256250664,-571.38,0.00020547,2]
[359691988,1746256250673,-683.98,0.00020547,2]
[359691989,1746256250683,-400.0,0.00020547,2]
[359691990,1746256250692,-580.79,0.00020547,2]
[359691991,1746256250702,-551.5,0.00020547,2]
[359691992,1746256250712,-400.0,0.00020547,2]
[359691993,1746256250721,-400.0,0.00020547,2]
[359691994,1746256250731,-400.0,0.00020547,2]
[359691995,1746256250740,-1435.21,0.00020547,2]
[359691996,1746256250750,-500.0,0.00020573,2]
[359691997,1746256250759,-500.0,0.00020573,2]
[359691998,1746256250769,-552.0579452,0.0002079,2]
[359691999,1746256250778,-12601.56422439,0.000208,7]
[359692000,1746256250787,-841.47485993,0.000208,7]
[359692001,1746256250796,-182.16284668,0.000208,7]
[359692002,1746256250805,-1774.08,0.00020821,2]
[359692003,1746256250815,-400.0,0.00020821,2]
[359692004,1746256250825,-400.0,0.00020821,2]
[359692005,1746256250835,-400.0,0.00020821,2]
[359692006,1746256250845,-400.0,0.00020821,2]
[359692007,1746256250854,-481.92,0.00020821,2]
[359692008,1746256250864,-400.0,0.00020821,2]
[359692009,1746256250873,-400.0,0.00020821,2]
[359692010,1746256250883,-661.47,0.00020821,2]
[359692011,1746256250892,-596.74,0.00020821,2]
[359692012,1746256250901,-400.0,0.00020821,2]
[359692013,1746256250911,-510.4,0.00020821,2]
[359692014,1746256250920,-400.0,0.00020821,2]
[359692015,1746256250929,-632.62,0.00020821,2]
[359692016,1746256250939,-526.36,0.00020821,2]
[359692017,1746256250948,-400.0,0.00020821,2]
[359692018,1746256250958,-552.91,0.00020821,2]
[359692019,1746256250967,-775.17,0.00020821,2]
[359692020,1746256250976,-400.0,0.00020821,2]
[359692021,1746256250985,-400.0,0.00020821,2]
[359692022,1746256250994,-794.64,0.00020821,2]
[359692023,1746256251004,-400.0,0.00020821,2]
[359692024,1746256251013,-802.78,0.00020821,2]
[359692025,1746256251023,-400.0,0.00020821,2]
[359692026,1746256251033,-400.0,0.00020821,2]
[359692027,1746256251042,-400.0,0.00020821,2]
[359692028,1746256251052,-400.0,0.00020821,2]
[359692029,1746256251062,-588.46,0.00020821,2]
[359692030,1746256251073,-2003.18,0.00020821,2]
[359692031,1746256251082,-438.16,0.00020821,2]
[359692032,1746256251092,-400.0,0.00020821,2]
[359692033,1746256251102,-928.7,0.00020821,2]
[359692034,1746256251112,-400.0,0.00020821,2]
[359692035,1746256251121,-1467.12,0.00020821,2]
[359692036,1746256251131,-1841.02,0.00020821,2]
[359692037,1746256251141,-520.64,0.00020821,2]
[359692038,1746256251150,-571.38,0.00020821,2]
[359692039,1746256251160,-683.98,0.00020821,2]
[359692040,1746256251170,-400.0,0.00020821,2]
[359692041,1746256251180,-580.79,0.00020821,2]
[359692042,1746256251190,-551.5,0.00020821,2]
[359692043,1746256251201,-400.0,0.00020821,2]
[359692044,1746256251210,-400.0,0.00020821,2]
[359692045,1746256251221,-378.19587091,0.00020821,2]
[359692046,1746256251231,-1435.21,0.00020821,2]
[359692047,1746256251241,-420.0,0.00020899,2]
[359692048,1746256251250,-3099.96,0.000209,2]
[359692049,1746256251260,-18842.72327697,0.000209,4]
[359692050,1746256251270,-186.09400751,0.00021,2]
[359692051,1746256251280,-157.75,0.00021,2]
[359692052,1746256251290,-157.75,0.00021,2]
[359692053,1746256251300,-3000.0,0.0002101,2]
[359692054,1746256251310,-3000.0,0.0002102,2]
[359692055,1746256251321,-3000.0,0.0002103,2]
[359692056,1746256251331,-3000.0,0.0002104,2]
[359692057,1746256251340,-3000.0,0.0002105,2]
[359692058,1746256251350,-3000.0,0.0002106,2]
[359692059,1746256251360,-3000.0,0.0002107,2]
[359692060,1746256251369,-181.45757745,0.00021073,2]
[359692140,1746257246102,-5187.07742782,0.000188,2]
[359692142,1746257271311,-740.77760035,0.00018,2]
[359692143,1746257274743,3918.16663834,0.00016,2]
[359692144,1746257276459,-239.03307269,0.00018,2]
[359692145,1746257281544,-242.55097437,0.00018,2]
[359692146,1746257284229,-500.0,0.00018,2]
[359692147,1746257287481,-507.44902563,0.00018,2]
[359692148,1746257295734,7358.12306503,0.000125,2]
[359692149,1746257296656,-14.86542463,0.00018,2]
[359692150,1746257309391,279.56956491,0.0001,2]
[359692151,1746257314783,28334.16592152,0.00017,2]
[359692152,1746257319323,574.00318003,0.000149,2]
[359692154,1746257323335,9488.76273075,0.00015,2]
[359692155,1746257325422,-260.41835369,0.00018,2]
[359692156,1746257329097,-224.71622168,0.00018,2]
[359692160,1746257333689,-448.32906775,0.00018,2]
[359692161,1746257341584,-255.07224786,0.00018,2]
[359692162,1746257342872,300.0,0.00017999,2]
[359692163,1746257349882,-1300.44189847,0.00018,2]
[359692167,1746257359203,-250.0,0.00018,2]
[359692168,1746257362545,-283.90461392,0.00018,2]
[359692169,1746257365866,-248.68227177,0.00018,2]
[359692170,1746257369261,-152.98336857,0.00018,2]
[359692171,1746257372872,-326.8652195,0.00018,2]
[359692172,1746257377396,-269.4918856,0.00018,2]
[359692176,1746257383725,-300.0,0.00018,2]
[359692177,1746257391758,-320.1901891,0.00018,2]
[359692178,1746257398886,-354.41296874,0.00018,2]
[359692179,1746257402110,-243.22389783,0.00018,2]
[359692180,1746257402727,300.0,0.00017999,2]
[359692181,1746257406707,-150.0,0.00018,2]
[359692182,1746257410027,450.0,0.00017999,2]
[359692183,1746257411426,-171.78858389,0.00018,2]
[359692184,1746257415628,-178.13892656,0.00018,2]
[359692185,1746257418371,-170.77733214,0.00018,2]
[359692186,1746257421830,-160.0,0.00018,2]
[359692187,1746257427240,-300.0,0.00018,2]
[359692210,1746257432413,-11312.35360706,0.00018,2]
[359692260,1746257438414,-5506.59063929,0.00018,2]
[359692293,1746257438716,-5743.122834,0.00018,2]
[359692295,1746257438727,-704.39289074,0.000187,2]
[359692297,1746257438737,-4067.79038475,0.000188,2]
[359692298,1746257438747,-500.0,0.000189,2]
[359692299,1746257438757,-262.55233102,0.000189,2]
[359692300,1746257438768,-18214.6325011,0.000189,2]
[359692301,1746257438779,-500.0,0.00019169,2]
[359692302,1746257438789,-500.0,0.00019169,2]
[359692304,1746257438798,-441.94625676,0.00019169,2]
[359692306,1746257438808,-949.71394946,0.00019169,2]
[359692308,1746257438817,-483.32848522,0.00019169,2]
[359692310,1746257438827,-200.5364901,0.00019169,2]
[359692312,1746257438836,-564.62876287,0.00019169,2]
[359692314,1746257438845,-380.04684755,0.00019169,2]
[359692316,1746257438855,-949.71394946,0.00019169,2]
[359692318,1746257438865,-949.71394946,0.00019169,2]
[359692320,1746257438874,-949.71394946,0.00019169,2]
[359692322,1746257438884,-949.71394946,0.00019169,2]
[359692324,1746257438893,-949.71394946,0.00019169,2]
[359692326,1746257438903,-949.71394946,0.00019169,2]
[359692328,1746257438912,-949.71394946,0.00019169,2]
[359692330,1746257438921,-949.71394946,0.00019169,2]
[359692332,1746257438930,-949.71394946,0.00019169,2]
[359692334,1746257438939,-949.71394946,0.00019169,2]
[359692336,1746257438948,-949.71394946,0.00019169,2]
[359692338,1746257438958,-949.71394946,0.00019169,2]
[359692340,1746257438967,-949.71394946,0.00019169,2]
[359692342,1746257438977,-949.71394946,0.00019169,2]
[359692344,1746257438986,-949.71394946,0.00019169,2]
[359692346,1746257438996,-949.71394946,0.00019169,2]
[359692348,1746257439005,-949.71394946,0.00019169,2]
[359692350,1746257439014,-949.71394946,0.00019169,2]
[359692352,1746257439024,-949.71394946,0.00019169,2]
[359692354,1746257439033,-949.71394946,0.00019169,2]
[359692356,1746257439042,-949.71394946,0.00019169,2]
[359692358,1746257439051,-949.71394946,0.00019169,2]
[359692360,1746257439061,-949.71394946,0.00019169,2]
[359692362,1746257439070,-949.71394946,0.00019169,2]
[359692364,1746257439079,-949.71394946,0.00019169,2]
[359692366,1746257439088,-949.71394946,0.00019169,2]
[359692368,1746257439098,-949.71394946,0.00019169,2]
[359692370,1746257439107,-949.71394946,0.00019169,2]
[359692372,1746257439117,-949.71394946,0.00019169,2]
[359692374,1746257439126,-949.71394946,0.00019169,2]
[359692376,1746257439135,-949.71394946,0.00019169,2]
[359692378,1746257439144,-949.71394946,0.00019169,2]
[359692380,1746257439154,-949.71394946,0.00019169,2]
[359692383,1746257439164,-949.71394946,0.00019169,2]
[359692384,1746257439173,-949.71394946,0.00019169,2]
[359692387,1746257439186,-949.71394946,0.00019169,2]
[359692389,1746257439195,-949.71394946,0.00019169,2]
[359692391,1746257439205,-940.21680996,0.00019169,2]
[359692393,1746257439214,-940.21680996,0.00019169,2]
[359692394,1746257439223,-114.89243004,0.00019169,2]
[359692461,1746257440900,-0.01329918,0.00019169,2]
[359692464,1746257440916,-825.31108074,0.00019169,2]
[359692466,1746257440926,-940.21680996,0.00019169,2]
[359692468,1746257440936,-940.21680996,0.00019169,2]
[359692470,1746257440946,-940.21680996,0.00019169,2]
[359692472,1746257440956,-940.21680996,0.00019169,2]
[359692474,1746257440965,-940.21680996,0.00019169,2]
[359692476,1746257440975,-940.21680996,0.00019169,2]
[359692478,1746257440984,-940.21680996,0.00019169,2]
[359692480,1746257440994,-940.21680996,0.00019169,2]
[359692482,1746257441003,-940.21680996,0.00019169,2]
[359692484,1746257441013,-940.21680996,0.00019169,2]
[359692486,1746257441022,-354.1556137,0.00019169,2]
[359693005,1746257587993,151.0,0.00021,10]
[359693042,1746257902830,10233.31218835,0.00021,10]
[359693068,1746258427103,-1031.71540047,0.00018,2]
[359693069,1746258457289,182.08685212,0.00017944,2]
[359693070,1746258548750,156.693953,0.00020822,15]
[359693075,1746258632530,-1847.05578226,0.00018,2]
[359693076,1746258632665,-1590.43250592,0.00018,2]
[359693161,1746258638951,-530.79631135,0.00018,2]
[359693163,1746258638961,-250.0,0.00018044,2]
[359693165,1746258638971,-1479.810673,0.00018144,2]
[359693167,1746258638980,-502.0,0.00018351,2]
[359693169,1746258638990,-2399.1261845,0.00018352,2]